bitfinex/quotes_BTCUSD_20251029
["timestamp","ask_amount","ask_price","bid_price","bid_amount"]
[1761750455013,3.05101387,112690.0,112680.0,4.001e-05]
[1761750455235,3.76504771,112690.0,112680.0,4.001e-05]
[1761750456334,1.65137773,112690.0,112680.0,4.001e-05]
[1761750456539,1.47805661,112690.0,112680.0,4.001e-05]
[1761750456777,1.45137613,112690.0,112680.0,4.001e-05]
[1761750457200,1.47530768,112690.0,112680.0,4.001e-05]
[1761750457405,1.45137613,112690.0,112680.0,4.001e-05]
[1761750457587,1.48755841,112690.0,112680.0,4.001e-05]
[1761750457789,1.57737742,112690.0,112680.0,4.001e-05]
[1761750457996,1.5847333,112690.0,112680.0,4.001e-05]
[1761750458422,1.56078663,112690.0,112680.0,4.001e-05]
[1761750461459,1.42382792,112690.0,112680.0,4.001e-05]
[1761750463574,1.44779758,112690.0,112680.0,4.001e-05]
[1761750467683,1.45590237,112690.0,112680.0,4.001e-05]
[1761750467885,1.4505055,112690.0,112680.0,4.001e-05]
[1761750469750,1.47447291,112690.0,112680.0,4.001e-05]
[1761750471569,1.4425841,112690.0,112680.0,4.001e-05]
[1761750471985,1.5362541,112690.0,112680.0,4.001e-05]
[1761750472185,1.4425841,112690.0,112680.0,4.001e-05]
[1761750473113,1.41847271,112690.0,112680.0,4.001e-05]
[1761750473330,1.39179513,112690.0,112680.0,4.001e-05]
[1761750475080,1.30197612,112690.0,112680.0,4.001e-05]
[1761750477653,1.31197611,112690.0,112680.0,4.001e-05]
[1761750478163,1.30197612,112690.0,112680.0,4.001e-05]
[1761750478359,1.31197611,112690.0,112680.0,4.001e-05]
[1761750478802,1.34405056,112690.0,112680.0,4.001e-05]
[1761750479095,1.43386957,112690.0,112680.0,4.001e-05]
[1761750479519,1.42386958,112690.0,112680.0,4.001e-05]
[1761750479662,1.40179512,112690.0,112680.0,4.001e-05]
[1761750480874,3.52753957,112690.0,112680.0,4.001e-05]
[1761750481094,3.53753956,112690.0,112680.0,4.001e-05]
[1761750481301,3.56421997,112690.0,112680.0,4.001e-05]
[1761750481950,4.1412951,112690.0,112680.0,4.001e-05]
[1761750482167,0.55370757,112660.0,112650.0,4e-05]
[1761750482382,1.88638465,112660.0,112650.0,4e-05]
[1761750482590,1.9184591,112660.0,112650.0,4e-05]
[1761750482796,1.88638465,112660.0,112650.0,4e-05]
[1761750484662,1.81226152,112660.0,112650.0,4e-05]
[1761750485068,1.23518639,112660.0,112650.0,4e-05]
[1761750485478,1.23818639,112660.0,112650.0,0.00104]
[1761750489247,1.23281447,112660.0,112650.0,0.00104]
[1761750489944,1.21367948,112660.0,112650.0,0.00104]
[1761750492110,0.18052529,112660.0,112650.0,0.08819]
[1761750492573,0.75760042,112660.0,112650.0,0.00104]
[1761750492782,0.75760042,112660.0,112650.0,0.08819]
[1761750493485,0.18052529,112660.0,112650.0,0.04906]
[1761750495082,0.18052529,112660.0,112650.0,0.00104]
[1761750495301,0.75760042,112660.0,112650.0,0.00104]
[1761750495517,0.17758835,112620.0,112610.0,0.05993]
[1761750495725,0.17758835,112620.0,112610.0,0.08721]
[1761750496382,0.17758835,112620.0,112610.0,0.26481412]
[1761750496589,0.17758835,112620.0,112610.0,0.08721]
[1761750496793,0.17763684,112620.0,112610.0,0.08721]
[1761750497926,0.17863684,112620.0,112610.0,0.05408]
[1761750498430,0.17863684,112620.0,112610.0,0.09421]
[1761750501005,0.79133291,112620.0,112610.0,0.05508]
[1761750501229,1.22115192,112620.0,112610.0,0.007]
[1761750501447,1.2573342,112620.0,112610.0,1e-08]
[1761750502136,0.17760412,112610.0,112600.0,4e-05]
[1761750502359,0.84449826,112610.0,112600.0,4e-05]
[1761750503444,0.93449826,112610.0,112600.0,4e-05]
[1761750504131,4.00898215,112610.0,112560.0,0.0004]
[1761750504347,1.09474235,112570.0,112560.0,0.02768]
[1761750504588,1.18456136,112570.0,112560.0,0.0004]
[1761750504853,1.27438037,112570.0,112560.0,0.0004]
[1761750505273,1.22074364,112570.0,112560.0,0.0004]
[1761750505494,1.22074364,112570.0,112560.0,0.0014]
[1761750505705,1.18456136,112570.0,112560.0,0.00088605]
[1761750506980,1.18456136,112570.0,112560.0,0.00288605]
[1761750507244,1.18556136,112570.0,112560.0,0.00288605]
[1761750507472,1.20726054,112570.0,112560.0,0.00088605]
[1761750507689,1.20926054,112570.0,112560.0,0.00188605]
[1761750510237,0.63218541,112570.0,112560.0,0.00188605]
[1761750510453,1.20926054,112570.0,112560.0,0.00188605]
[1761750510790,1.18756136,112570.0,112560.0,0.00188605]
[1761750513331,0.97803999,112570.0,112560.0,0.00188605]
[1761750513569,1.19188949,112570.0,112560.0,0.00188605]
[1761750514750,1.76896462,112570.0,112560.0,1e-08]
[1761750514999,1.9092438,112570.0,112560.0,1e-08]
[1761750516124,1.9102438,112570.0,112560.0,1e-08]
[1761750516333,0.21386529,112560.0,112550.0,4e-05]
[1761750516467,0.88075943,112560.0,112550.0,0.00018578]
[1761750517392,1.45783456,112560.0,112550.0,0.00018578]
[1761750517560,1.52177494,112560.0,112550.0,0.00018578]
[1761750517979,1.52777494,112560.0,112550.0,0.00018578]
[1761750518712,1.52877494,112560.0,112550.0,0.00018578]
[1761750521379,1.09066724,112560.0,112550.0,0.00018578]
[1761750523721,1.1096524,112560.0,112550.0,0.00018578]
[1761750523925,0.55388108,112550.0,112540.0,0.00357974]
[1761750524065,1.44956166,112550.0,112540.0,0.00372558]
[1761750524269,0.21389687,112540.0,112530.0,0.03042625]
[1761750524470,0.51773038,112530.0,112520.0,0.0004]
[1761750524686,1.35977423,112530.0,112520.0,0.0004]
[1761750524864,1.35977423,112530.0,112520.0,0.00082787]
[1761750525090,1.48100071,112530.0,112520.0,0.00082787]
[1761750526551,1.4810492,112530.0,112520.0,0.00082787]
[1761750527502,0.76500664,112530.0,112520.0,0.00082787]
[1761750527715,1.44964173,112530.0,112520.0,0.00082787]
[1761750527919,1.32364044,112530.0,112520.0,0.00082787]
[1761750528213,1.32564044,112530.0,112520.0,0.00082787]
[1761750528424,1.32364044,112530.0,112520.0,0.00082787]
[1761750528661,1.32764044,112530.0,112520.0,0.00082787]
[1761750532595,1.34666751,112530.0,112520.0,0.00082787]
[1761750532773,0.72044396,112530.0,112520.0,0.00082787]
[1761750533031,1.34666751,112530.0,112520.0,0.00082787]
[1761750533205,1.32764044,112530.0,112520.0,0.00082787]
[1761750535351,1.34668953,112530.0,112520.0,0.00082787]
[1761750535719,1.32764044,112530.0,112520.0,0.00082787]
[1761750536125,1.34669041,112530.0,112520.0,0.00082787]
[1761750536420,1.43650942,112530.0,112520.0,0.00082787]
[1761750537842,1.4726917,112530.0,112520.0,0.00082787]
[1761750538691,1.38287269,112530.0,112520.0,0.00082787]
[1761750538887,1.4067933,112530.0,112520.0,0.00082787]
[1761750541980,1.4387235,112530.0,112520.0,0.00082787]
[1761750542391,1.41480289,112530.0,112520.0,0.00082787]
[1761750542641,1.43868948,112530.0,112520.0,0.00082787]
[1761750542848,1.52850849,112530.0,112520.0,0.00082787]
[1761750543047,1.43868948,112530.0,112520.0,0.00082787]
[1761750544256,1.4025072,112530.0,112520.0,0.02698787]
[1761750544594,1.4025072,112530.0,112520.0,0.00082787]
[1761750546353,1.37862061,112530.0,112520.0,0.00082787]
[1761750549108,1.39524717,112530.0,112520.0,0.00082787]
[1761750549317,1.48506618,112530.0,112520.0,0.00082787]
[1761750549537,1.53238601,112530.0,112520.0,0.00082787]
[1761750552358,1.51575945,112530.0,112520.0,0.00082787]
[1761750553368,1.48382925,112530.0,112520.0,0.00082787]
[1761750556418,1.51580712,112530.0,112520.0,0.00082787]
[1761750559452,1.46848729,112530.0,112520.0,0.00082787]
[1761750560479,1.40264818,112530.0,112520.0,0.00082787]
[1761750563467,1.46934043,112530.0,112520.0,0.00082787]
[1761750565323,1.55934043,112530.0,112520.0,0.00082787]
[1761750566783,1.62693018,112530.0,112520.0,0.00082787]
[1761750567207,1.59552271,112530.0,112520.0,0.00082787]
[1761750567411,1.67765258,112530.0,112520.0,0.00082787]
[1761750569246,1.12800419,112530.0,112520.0,0.00082787]
[1761750569483,1.53536053,112530.0,112520.0,0.00082787]
[1761750569697,1.12800419,112530.0,112520.0,0.00082787]
[1761750570847,1.53536053,112530.0,112520.0,0.00082787]
[1761750572171,0.29082884,112530.0,112520.0,0.08545787]
[1761750572593,0.27177887,112530.0,112520.0,0.08545787]
[1761750574798,0.67913521,112530.0,112520.0,0.08545787]
[1761750575262,0.27177887,112530.0,112520.0,0.08545787]
[1761750575896,0.67913521,112530.0,112520.0,0.08545787]
[1761750577135,0.27177887,112530.0,112520.0,0.08545787]
[1761750577347,0.67913521,112530.0,112520.0,0.08545787]
[1761750578585,0.67913521,112530.0,112520.0,0.04491787]
[1761750578786,0.76895422,112530.0,112520.0,0.00082787]
[1761750579313,0.76895422,112530.0,112520.0,0.02568787]
[1761750579896,0.67913521,112530.0,112520.0,0.04405787]
[1761750580109,0.67913521,112530.0,112520.0,0.08306787]
[1761750581367,0.67899692,112530.0,112520.0,0.08306787]
[1761750581569,0.67899692,112530.0,112520.0,0.04405787]
[1761750581983,0.67899692,112530.0,112520.0,0.08306787]
[1761750584244,0.27177887,112530.0,112520.0,0.26081404]
[1761750584468,0.27177887,112530.0,112520.0,0.08306787]
[1761750584469,0.67899692,112530.0,112520.0,0.08306787]
[1761750584678,0.67899692,112530.0,112520.0,0.26081404]
[1761750584891,0.27177887,112530.0,112520.0,0.26081404]
[1761750585083,0.26777887,112530.0,112520.0,0.26081404]
[1761750585285,0.26977887,112530.0,112520.0,0.26081404]
[1761750585814,0.26977887,112530.0,112520.0,0.08306787]
[1761750585963,0.67699692,112530.0,112520.0,0.08306787]
[1761750586570,0.69344372,112530.0,112520.0,0.00082787]
[1761750587364,0.69344372,112530.0,112520.0,0.02568787]
[1761750588612,0.69344372,112530.0,112520.0,0.04405787]
[1761750588813,0.69344372,112530.0,112520.0,0.01919787]
[1761750589239,0.69344372,112530.0,112520.0,0.04405787]
[1761750589697,0.69344372,112530.0,112520.0,0.08306787]
[1761750590353,0.67699692,112530.0,112520.0,0.08306787]
[1761750593709,0.67699692,112530.0,112520.0,0.04405787]
[1761750595166,0.67699692,112530.0,112520.0,0.08306787]
[1761750595602,0.67699692,112530.0,112520.0,0.04405787]
[1761750596640,1.08421497,112530.0,112520.0,0.00082787]
[1761750596869,0.7065686,112530.0,112520.0,0.00082787]
[1761750597279,1.11378665,112530.0,112520.0,0.02568787]
[1761750597702,1.11378665,112530.0,112520.0,0.00082787]
[1761750597921,2.01841346,112530.0,112520.0,0.00082787]
[1761750598184,2.05894936,112530.0,112520.0,1e-08]
[1761750598396,0.51776197,112510.0,112500.0,4e-05]
[1761750598609,1.40489106,112510.0,112500.0,4e-05]
[1761750599022,1.40489106,112510.0,112500.0,0.00046798]
[1761750600437,0.17776197,112510.0,112500.0,0.06433798]
[1761750600638,0.58498002,112510.0,112500.0,0.06433798]
[1761750600837,0.58598002,112510.0,112500.0,0.02632798]
[1761750601054,0.58598002,112510.0,112500.0,0.00146798]
[1761750601336,0.17876197,112510.0,112500.0,0.00146798]
[1761750601454,0.67744234,112510.0,112500.0,0.00146798]
[1761750606606,0.6417901,112510.0,112500.0,0.00146798]
[1761750607443,0.73160911,112510.0,112500.0,0.00146798]
[1761750607788,0.75832554,112510.0,112500.0,0.00146798]
[1761750610448,0.29529741,112510.0,112500.0,0.00146798]
[1761750610648,1.09832554,112510.0,112500.0,0.00146798]
[1761750611277,0.63529741,112510.0,112500.0,0.02437798]
[1761750611492,1.09832554,112510.0,112500.0,0.00146798]
[1761750612379,0.2054784,112510.0,112500.0,0.06005798]
[1761750614273,0.2054784,112510.0,112500.0,0.23783575]
[1761750615122,0.2054784,112510.0,112500.0,0.06005798]
[1761750616137,0.2054784,112510.0,112500.0,0.23783575]
[1761750616343,0.17876197,112510.0,112500.0,0.23783575]
[1761750617202,0.1785306,112510.0,112500.0,0.23783575]
[1761750621795,0.1785306,112510.0,112500.0,0.06005798]
[1761750622001,0.64155873,112510.0,112500.0,0.02524798]
[1761750622411,0.64155873,112510.0,112500.0,0.00146798]
[1761750622619,0.66826995,112510.0,112500.0,0.00146798]
[1761750622997,0.66826995,112510.0,112500.0,0.02524798]
[1761750623209,0.66826995,112510.0,112500.0,0.06005798]
[1761750623411,0.61259394,112510.0,112500.0,0.06005798]
[1761750623763,0.61259394,112510.0,112500.0,0.02524798]
[1761750624744,1.53958408,112510.0,112500.0,0.00146798]
[1761750626602,1.04241295,112510.0,112500.0,0.02524798]
[1761750626807,1.04241295,112510.0,112500.0,0.00146798]
[1761750627185,1.13241295,112510.0,112500.0,0.00146798]
[1761750628632,1.53976507,112510.0,112500.0,0.00146798]
[1761750629480,1.22432013,112510.0,112500.0,0.00146798]
[1761750629681,1.31413914,112510.0,112500.0,0.00146798]
[1761750630708,1.33328871,112510.0,112500.0,0.00146798]
[1761750631531,1.3108089,112510.0,112500.0,0.00146798]
[1761750632985,1.22098989,112510.0,112500.0,0.00146798]
[1761750636302,1.46818989,112510.0,112500.0,0.00146798]
[1761750636501,1.48733285,112510.0,112500.0,0.00146798]
[1761750642140,1.24013285,112510.0,112500.0,0.00146798]
[1761750643413,1.4937043,112510.0,112500.0,0.00146798]
[1761750643624,1.58352331,112510.0,112500.0,0.00146798]
[1761750644505,0.93060852,112500.0,112490.0,0.0004]
[1761750644711,1.02042753,112500.0,112490.0,0.0004]
[1761750644924,1.0395623,112500.0,112490.0,0.0004]
[1761750645127,1.0395623,112500.0,112490.0,0.00061403]
[1761750645752,1.0395623,112500.0,112490.0,0.00161403]
[1761750645960,1.06628306,112500.0,112490.0,0.00161403]
[1761750646398,1.09263635,112500.0,112490.0,0.00161403]
[1761750646854,1.06828306,112500.0,112490.0,0.00361403]
[1761750648090,1.31548306,112500.0,112490.0,0.00361403]
[1761750649438,1.41400341,112500.0,112490.0,0.00361403]
[1761750650462,2.16158782,112500.0,112490.0,1e-08]
[1761750650699,1.98370588,112500.0,112490.0,1e-08]
[1761750650938,1.66594048,112500.0,112490.0,1e-08]
[1761750651423,2.07352489,112500.0,112490.0,1e-08]
[1761750651655,0.17784101,112460.0,112450.0,4e-05]
[1761750651855,0.58542542,112460.0,112450.0,4e-05]
[1761750652458,0.61214975,112460.0,112450.0,4e-05]
[1761750652848,0.61223586,112460.0,112450.0,4e-05]
[1761750653077,0.61223586,112460.0,112450.0,0.02481]
[1761750653497,0.61423586,112460.0,112450.0,0.02481]
[1761750653703,0.58751153,112460.0,112450.0,0.02481]
[1761750653909,0.58551153,112460.0,112450.0,4e-05]
[1761750654150,0.58751153,112460.0,112450.0,0.02481]
[1761750655692,0.17992712,112460.0,112450.0,0.05949]
[1761750656394,0.58751153,112460.0,112450.0,0.02481]
[1761750656829,0.58751153,112460.0,112450.0,0.05949]
[1761750657043,0.58751153,112460.0,112450.0,0.02481]
[1761750657510,0.58751153,112460.0,112450.0,0.02566646]
[1761750659591,0.58751153,112460.0,112450.0,0.04323646]
[1761750661108,0.58751153,112460.0,112450.0,0.00089646]
[1761750662639,0.67733054,112460.0,112450.0,0.00089646]
[1761750662845,1.04405894,112460.0,112450.0,0.00089646]
[1761750663474,1.04205894,112460.0,112450.0,0.00089646]
[1761750663928,1.04405894,112460.0,112450.0,0.00089646]
[1761750664143,1.04205894,112460.0,112450.0,0.02566646]
[1761750664360,0.95223993,112460.0,112450.0,0.04323646]
[1761750664568,0.95423993,112460.0,112450.0,0.00089646]
[1761750664775,0.92751153,112460.0,112450.0,0.00089646]
[1761750667078,0.92751153,112460.0,112450.0,0.07791646]
[1761750667079,0.17992712,112460.0,112450.0,0.07791646]
[1761750668270,0.00208611,112460.0,112450.0,0.25577328]
[1761750668495,0.17992712,112460.0,112450.0,0.04323646]
[1761750668685,0.60974165,112460.0,112450.0,0.00089646]
[1761750668858,0.17992712,112460.0,112450.0,0.00089646]
[1761750669186,0.60974165,112460.0,112450.0,0.00089646]
[1761750669411,0.89694569,112460.0,112450.0,0.00089646]
[1761750669623,0.17992712,112460.0,112450.0,0.06014646]
[1761750670499,0.17992712,112460.0,112450.0,0.23800328]
[1761750672894,0.17992712,112460.0,112450.0,0.06014646]
[1761750673089,0.17992712,112460.0,112450.0,0.23800328]
[1761750673329,0.17992712,112460.0,112450.0,0.06014646]
[1761750673531,0.17992712,112460.0,112450.0,0.23800328]
[1761750674659,0.17992712,112460.0,112450.0,0.25548328]
[1761750674808,0.00208611,112460.0,112450.0,0.25548328]
[1761750674976,0.00208611,112460.0,112450.0,0.34530229]
[1761750684900,0.00208611,112460.0,112450.0,3.06232086]
[1761750685102,0.00208611,112460.0,112450.0,2.34530229]
[1761750686149,0.00208611,112460.0,112450.0,0.25548328]
[1761750686330,0.17992712,112460.0,112450.0,0.25548328]
[1761750686566,0.9867647,112460.0,112450.0,0.07762646]
[1761750686775,0.26974613,112460.0,112450.0,0.07762646]
[1761750687401,0.17992712,112460.0,112450.0,0.07762646]
[1761750687607,0.17992712,112460.0,112450.0,0.25548328]
[1761750687817,0.17992712,112460.0,112450.0,0.07762646]
[1761750688024,0.00208611,112460.0,112450.0,0.25548328]
[1761750689139,0.09208611,112460.0,112450.0,0.25548328]
[1761750689592,0.09208611,112460.0,112450.0,2.34530229]
[1761750690095,0.09208611,112460.0,112450.0,3.06232086]
[1761750690301,0.09208611,112460.0,112450.0,2.34530229]
[1761750690503,0.09208611,112460.0,112450.0,2.68530229]
[1761750692919,0.09208611,112460.0,112450.0,3.40232086]
[1761750694183,0.09008611,112460.0,112450.0,3.40232086]
[1761750694440,0.09008611,112460.0,112450.0,3.40332086]
[1761750694857,0.09208611,112460.0,112450.0,3.40332086]
[1761750696652,0.09208611,112460.0,112450.0,3.43950314]
[1761750697451,0.09208611,112460.0,112450.0,3.36277314]
[1761750698088,0.09208611,112460.0,112450.0,2.64575457]
[1761750698303,0.09208611,112460.0,112450.0,2.60957229]
[1761750698506,0.09208611,112460.0,112450.0,3.32659086]
[1761750701325,0.09208611,112460.0,112450.0,2.60957229]
[1761750701504,0.09208611,112460.0,112450.0,3.32659086]
[1761750703125,0.09208611,112460.0,112450.0,3.36277314]
[1761750703345,0.09208611,112460.0,112450.0,3.10863518]
[1761750708742,0.08208611,112460.0,112450.0,3.10863518]
[1761750709349,0.08208611,112460.0,112450.0,3.17901518]
[1761750709897,0.08208611,112460.0,112450.0,3.1428329]
[1761750710108,0.08208611,112460.0,112450.0,3.1105529]
[1761750710531,0.08208611,112460.0,112450.0,2.62620229]
[1761750710901,0.08208611,112460.0,112450.0,2.64767229]
[1761750711773,0.08208611,112460.0,112450.0,2.67995229]
[1761750712393,0.08208611,112460.0,112450.0,3.1428329]
[1761750713528,0.08208611,112460.0,112450.0,3.49479669]
[1761750715455,0.08208611,112460.0,112450.0,3.14293974]
[1761750723538,0.18668328,112490.0,112450.0,3.14293974]
[1761750723539,0.19573026,112520.0,112500.0,0.17777064]
[1761750723796,0.18667661,112520.0,112500.0,0.17825687]
[1761750724429,0.18667661,112520.0,112510.0,0.17776197]
[1761750724633,0.17774617,112520.0,112510.0,0.17776197]
[1761750725073,0.18474617,112520.0,112510.0,0.17776197]
[1761750725283,0.17874617,112520.0,112510.0,0.17776197]
[1761750725702,0.18374617,112520.0,112510.0,0.17776197]
[1761750725903,0.17774617,112520.0,112510.0,0.17776197]
[1761750726439,0.18174617,112520.0,112510.0,0.17776197]
[1761750726525,0.18174617,112520.0,112500.0,0.17825687]
[1761750726746,0.18174617,112520.0,112500.0,0.26807588]
[1761750727572,0.17774617,112520.0,112500.0,0.26807588]
[1761750727788,0.17776197,112510.0,112500.0,0.178264]
[1761750727994,0.17776197,112510.0,112500.0,0.180264]
[1761750728406,0.18374617,112520.0,112500.0,0.180264]
[1761750728620,0.17776197,112510.0,112500.0,0.180264]
[1761750728832,0.17776197,112510.0,112500.0,0.178264]
[1761750729036,0.18176197,112510.0,112500.0,0.180264]
[1761750729525,0.17776197,112510.0,112500.0,0.178264]
[1761750730251,0.17776197,112510.0,112500.0,0.00048623]
[1761750730451,0.64074942,112510.0,112500.0,0.00048623]
[1761750730886,1.10675071,112510.0,112500.0,0.00248623]
[1761750731094,0.67048014,112510.0,112500.0,0.00048623]
[1761750731304,1.13346759,112510.0,112500.0,0.00048623]
[1761750731519,1.2262866,112510.0,112500.0,0.00148623]
[1761750732341,1.2232866,112510.0,112500.0,0.00048623]
[1761750732555,1.2282866,112510.0,112500.0,0.00248623]
[1761750734745,1.13846759,112510.0,112500.0,0.00248623]
[1761750739820,1.12141235,112510.0,112500.0,0.00248623]
[1761750740025,1.15759463,112510.0,112500.0,0.00248623]
[1761750741547,1.50970206,112510.0,112500.0,0.00248623]
[1761750741750,1.75690206,112510.0,112500.0,0.00248623]
[1761750741951,0.94180718,112510.0,112500.0,0.00248623]
[1761750742385,1.75690206,112510.0,112500.0,0.00248623]
[1761750742742,1.72803271,112510.0,112500.0,0.00248623]
[1761750744396,1.28430299,112510.0,112500.0,0.00248623]
[1761750744625,1.69185043,112510.0,112500.0,0.00248623]
[1761750745202,1.28430299,112510.0,112500.0,0.00248623]
[1761750745836,1.69185043,112510.0,112500.0,0.00248623]
[1761750747333,1.33976745,112510.0,112500.0,0.00248623]
[1761750751646,1.42958646,112510.0,112500.0,0.00248623]
[1761750751874,1.49454752,112510.0,112500.0,0.00248623]
[1761750752344,1.51367015,112510.0,112500.0,0.00248623]
[1761750753783,1.48489137,112510.0,112500.0,0.00248623]
[1761750754528,1.51367015,112510.0,112500.0,0.00248623]
[1761750755098,1.48489137,112510.0,112500.0,0.00248623]
[1761750755307,1.39507236,112510.0,112500.0,0.00248623]
[1761750756744,1.39507236,112510.0,112500.0,0.00248623]
[1761750756941,1.39507236,112510.0,112480.0,0.04949406]
[1761750756942,0.17779358,112490.0,112480.0,0.04949406]
[1761750757201,0.17828005,112490.0,112480.0,0.07084406]
[1761750757613,0.20499814,112490.0,112480.0,0.07084406]
[1761750758072,0.66801004,112490.0,112480.0,0.00021406]
[1761750758484,1.17523381,112490.0,112480.0,0.00021406]
[1761750758692,1.17723381,112490.0,112480.0,0.00021406]
[1761750758894,1.09982905,112490.0,112480.0,0.00021406]
[1761750762995,1.15517434,112490.0,112480.0,0.00021406]
[1761750763415,1.40892135,112490.0,112480.0,0.00021406]
[1761750765129,0.69216244,112490.0,112480.0,0.00021406]
[1761750765581,1.40892135,112490.0,112480.0,0.00021406]
[1761750767073,0.65598016,112490.0,112480.0,0.07287406]
[1761750767280,0.63681715,112490.0,112480.0,0.03957406]
[1761750767483,0.63681715,112490.0,112480.0,0.07287406]
[1761750768510,0.63681715,112490.0,112480.0,0.03957406]
[1761750769093,0.63681715,112490.0,112480.0,0.07287406]
[1761750769307,1.04430585,112490.0,112480.0,0.07287406]
[1761750770982,0.63681715,112490.0,112480.0,0.07287406]
[1761750774254,1.01758776,112490.0,112480.0,0.07287406]
[1761750775173,0.18028005,112490.0,112480.0,0.07287406]
[1761750776475,0.00248647,112490.0,112480.0,0.25068344]
[1761750776691,0.00248647,112490.0,112480.0,0.65817214]
[1761750777133,0.00248647,112490.0,112480.0,0.25068344]
[1761750777348,0.00248647,112490.0,112480.0,0.74799115]
[1761750777776,0.00248647,112490.0,112480.0,0.34050245]
[1761750780153,0.00248647,112490.0,112480.0,3.08799115]
[1761750780634,0.20370424,112530.0,112520.0,0.19419617]
[1761750780866,0.6201395,112530.0,112520.0,0.03936]
[1761750781079,1.03651471,112530.0,112520.0,0.03936]
[1761750781281,0.62902601,112530.0,112520.0,0.03936]
[1761750781487,0.21263939,112530.0,112520.0,0.07266]
[1761750781693,0.62012809,112530.0,112520.0,0.07266]
[1761750783069,0.17774617,112520.0,112510.0,0.01645]
[1761750783358,0.58523487,112520.0,112510.0,0.03936]
[1761750783580,0.89396282,112520.0,112510.0,0.03936]
[1761750785124,0.89396282,112520.0,112510.0,0.04136]
[1761750785125,0.89796282,112520.0,112510.0,0.04136]
[1761750785587,1.38307095,112520.0,112510.0,1e-08]
[1761750785806,1.47288996,112520.0,112510.0,1e-08]
[1761750786015,1.50166874,112520.0,112510.0,1e-08]
[1761750786846,0.51777777,112500.0,112490.0,0.01645]
[1761750787077,1.32381343,112500.0,112490.0,0.03936]
[1761750788375,1.32481343,112500.0,112490.0,0.04036]
[1761750789394,0.60859678,112500.0,112490.0,0.04036]
[1761750789654,1.32481343,112500.0,112490.0,0.01745]
[1761750790299,1.32481343,112500.0,112490.0,0.001]
[1761750790712,1.41463244,112500.0,112490.0,0.001]
[1761750790966,1.32481343,112500.0,112490.0,0.001]
[1761750792536,1.36099571,112500.0,112490.0,0.001]
[1761750793668,1.1643093,112500.0,112490.0,0.001]
[1761750793878,1.34208707,112500.0,112490.0,0.001]
[1761750794130,0.17779358,112490.0,112480.0,0.00021406]
[1761750794331,0.26761259,112490.0,112480.0,0.00021406]
[1761750794547,0.26761259,112490.0,112480.0,0.03808406]
[1761750794795,1.13860931,112490.0,112480.0,0.00021406]
[1761750795023,1.02001152,112490.0,112480.0,0.00021406]
[1761750795444,1.02001152,112490.0,112480.0,0.0003601]
[1761750795655,1.02201152,112490.0,112480.0,0.0003601]
[1761750795872,1.36201152,112490.0,112480.0,0.0003601]
[1761750796154,1.44983053,112490.0,112480.0,0.0003601]
[1761750796580,1.47860931,112490.0,112480.0,0.0003601]
[1761750797670,1.48160931,112490.0,112480.0,0.0003601]
[1761750798957,1.48160931,112490.0,112480.0,1e-08]
[1761750798958,1.50072149,112490.0,112480.0,1e-08]
[1761750799593,1.46453921,112490.0,112480.0,1e-08]
[1761750799808,1.50072149,112490.0,112480.0,1e-08]
[1761750800857,1.40790248,112490.0,112480.0,1e-08]
[1761750801067,1.3791237,112490.0,112480.0,1e-08]
[1761750801274,1.3851237,112490.0,112480.0,1e-08]
[1761750801698,1.3841237,112490.0,112480.0,1e-08]
[1761750802127,1.3851237,112490.0,112480.0,1e-08]
[1761750802333,1.45583053,112490.0,112480.0,1e-08]
[1761750803742,1.47492289,112490.0,112480.0,1e-08]
[1761750804575,1.36601152,112490.0,112480.0,1e-08]
[1761750804740,0.64979487,112490.0,112480.0,1e-08]
[1761750804948,1.36601152,112490.0,112480.0,1e-08]
[1761750805613,0.27361259,112490.0,112480.0,0.03787001]
[1761750805823,0.98982924,112490.0,112480.0,0.03787001]
[1761750806031,1.36601152,112490.0,112480.0,0.01625001]
[1761750806482,1.36601152,112490.0,112480.0,0.03787001]
[1761750806692,0.55400747,112470.0,112460.0,0.01]
[1761750806901,1.36004313,112470.0,112460.0,0.01048647]
[1761750808342,1.36004313,112470.0,112460.0,1e-08]
[1761750808553,1.39082191,112470.0,112460.0,1e-08]
[1761750808763,1.48064092,112470.0,112460.0,1e-08]
[1761750809410,1.47864092,112470.0,112460.0,1e-08]
[1761750809623,1.39382191,112470.0,112460.0,1e-08]
[1761750810714,1.36604313,112470.0,112460.0,1e-08]
[1761750811384,1.36504313,112470.0,112460.0,1e-08]
[1761750811599,1.36604313,112470.0,112460.0,1e-08]
[1761750812478,1.36604313,112470.0,112460.0,0.00042822]
[1761750812958,1.36604313,112470.0,112460.0,0.02204822]
[1761750813186,1.36604313,112470.0,112460.0,0.00042822]
[1761750814718,0.64982648,112470.0,112460.0,0.00042822]
[1761750814946,1.36604313,112470.0,112460.0,0.00042822]
[1761750816287,1.38516561,112470.0,112460.0,0.00042822]
[1761750816529,1.47498462,112470.0,112460.0,1e-08]
[1761750816762,1.48498461,112470.0,112460.0,1e-08]
[1761750816998,1.50891028,112470.0,112460.0,1e-08]
[1761750818629,1.53768906,112470.0,112460.0,1e-08]
[1761750818878,3.92279825,112470.0,112460.0,1e-08]
[1761750819110,3.91755776,112470.0,112460.0,1e-08]
[1761750819525,3.78580949,112470.0,112460.0,1e-08]
[1761750820155,3.77980949,112470.0,112460.0,1e-08]
[1761750820487,3.76175232,112470.0,112460.0,1e-08]
[1761750820903,3.76075232,112470.0,112460.0,1e-08]
[1761750821342,3.76175232,112470.0,112460.0,1e-08]
[1761750821565,3.74575232,112470.0,112460.0,1e-08]
[1761750821791,3.51916273,112470.0,112460.0,1e-08]
[1761750822550,3.55534501,112470.0,112460.0,1e-08]
[1761750822991,3.565345,112470.0,112460.0,1e-08]
[1761750823628,3.55534501,112470.0,112460.0,1e-08]
[1761750823839,1.45035591,112470.0,112460.0,1e-08]
[1761750824050,0.77663844,112470.0,112460.0,1e-08]
[1761750824277,1.49285509,112470.0,112460.0,1e-08]
[1761750824485,1.54017492,112470.0,112460.0,1e-08]
[1761750824999,1.0268538,112470.0,112460.0,1e-08]
[1761750825215,1.0189028,112470.0,112460.0,0.02157001]
[1761750825423,1.1060263,112470.0,112460.0,0.02157001]
[1761750825643,0.77828911,112470.0,112460.0,0.02157001]
[1761750826089,1.11828911,112470.0,112460.0,0.02157001]
[1761750826370,0.77828911,112470.0,112460.0,0.02157001]
[1761750826740,0.86810812,112470.0,112460.0,0.02157001]
[1761750826948,1.20810812,112470.0,112460.0,0.02157001]
[1761750827570,1.11828911,112470.0,112460.0,0.05434001]
[1761750827781,0.61876668,112470.0,112460.0,0.05434001]
[1761750827987,0.2596442,112470.0,112460.0,0.05434001]
[1761750829031,0.16982519,112470.0,112460.0,0.05434001]
[1761750830263,0.16282519,112470.0,112460.0,0.05434001]
[1761750830676,0.16682519,112470.0,112460.0,0.05434001]
[1761750831098,0.16782519,112470.0,112460.0,0.05434001]
[1761750831315,0.63116534,112470.0,112460.0,0.05434001]
[1761750836071,0.16782519,112470.0,112460.0,0.05434001]
[1761750836732,0.63116534,112470.0,112460.0,0.05434001]